Cogmind - Beta 13 @@@ ROGUE MODE // 2024.03.16 @ 14:08:01 Player: babadi Result: Destroyed by S-10 Pest with Light Assault Rifle Performance ------------- Evolutions (1) 500 Regions Visited (2) 400 Robots Destroyed (8) 40 Value Destroyed (190) 190 Prototype IDs (0) 0 Alien Tech Used (0) 0 Bonus (0) 0 TOTAL SCORE: 1130 Bonus ------- None Cogmind --------- Core Integrity 0/400 Matter 281/300 Energy 62/100 System Corruption 0% Temperature Cool (0) Movement Core (50) Location -9/Materials Parts ------- > --- POWER (1) -------- (None) > --- PROPULSION (3) --- (None) > --- UTILITY (2) ------ (None) > --- WEAPON (3) ------- (None) > --- INVENTORY (5) ---- Light Treads Heat Sink Huge Storage Unit Sensor Array Signal Interpreter Peak State ------------ > --- POWER ------------ Light Ion Engine > --- PROPULSION ------- Wheel Compact Wheel > --- UTILITY ---------- Small Storage Unit Huge Storage Unit > --- WEAPON ----------- Medium Laser Light Assault Rifle > --- INVENTORY -------- Light Ion Engine Light Treads Light Treads Aluminum Leg Aluminum Leg Heat Sink Huge Storage Unit Huge Storage Unit Sensor Array Small Laser [Rating: 8] Favorites ----------- Power Light Ion Engine Engine Light Ion Engine Propulsion Wheel Leg Aluminum Leg Wheel Wheel Utility Small Storage Unit Storage Small Storage Unit Weapon Medium Laser Energy Gun Medium Laser Energy Cannon Light EM Pulse Cannon Ballistic Gun Light Assault Rifle Build | -11 -10 -9 ------- Run | Yrd Mat Mat Slots Evolved 2 | . . 2 Power . | . . . Propulsion 1 | . . 1 Utility . | . . . Weapon 1 | . . 1 Parts Attached 15 | 6 4 5 Power 3 | 1 1 1 Engine 3 | 1 1 1 Core . | . . . Reactor . | . . . Propulsion 5 | 2 1 2 Treads . | . . . Leg 2 | . . 2 Wheel 3 | 2 1 . Hover . | . . . Flight . | . . . Utility 2 | 1 1 . Device . | . . . Storage 2 | 1 1 . Processor . | . . . Hackware . | . . . Protection . | . . . Artifact . | . . . Weapon 5 | 2 1 2 Energy Gun 2 | 1 1 . Energy Cannon 1 | . . 1 Ballistic Gun 2 | 1 . 1 Ballistic Cannon . | . . . Launcher . | . . . Special Weapon . | . . . Impact Weapon . | . . . Slashing Weapon . | . . . Piercing Weapon . | . . . Special Melee Weapon . | . . . Unidentified Prototypes . | . . . Parts Lost 9 | . . 9 Power 2 | . . 2 Propulsion 4 | . . 4 Utility . | . . . Weapon 3 | . . 3 Highest Loss Streak 8 | . . 8 To Critical Strikes . | . . . Average Slot Usage (%) 79 | . 98 40 Engine 10 | . 14 4 Wheel 22 | . 28 11 Storage 23 | . 26 15 Energy Gun 14 | . 19 4 Ballistic Gun 6 | . 8 1 Naked Turns 22 | . . 22 Heaviest Build 91 | 11 91 90 Greatest Support 26 | 26 26 26 Greatest Overweight (x) 8 | 1 3 8 Average Overweight (x) 1 | . 2 1 Largest Inventory Capacity 25 | 8 25 25 Average Capacity 20 | 7 23 18 Most Carried 13 | 6 13 13 Average Carried 8 | 3 9 9 Final Capacity 25 | 8 25 5 Final Carried 12 | 6 12 5 Class Distribution -------------------- 100% | Mutant Dominant Class ---------------- Mutant | -10/Materials Mutant | -9/Materials Resources | -11 -10 -9 ----------- Run | Yrd Mat Mat Matter Collected 296 | 227 69 . Remotely . | . . . Salvage Created 259 | . 245 14 Parts 21 | . 18 3 Haulers Intercepted 1 | . 1 . Recyclers Shooed 1 | . 1 . Parts Field Recycled . | . . . Retrieved Matter . | . . . Parts Self-Destructed . | . . . Prevented . | . . . Kills | -11 -10 -9 ------- Run | Yrd Mat Mat Combat Hostiles Destroyed 5 | . 4 1 Guns 4 | . 4 . Cannons 1 | . . 1 Classes Destroyed 4 | . 3 1 Hauler 1 | . 1 . Watcher 2 | . 2 . Swarmer 1 | . . 1 Grunt 4 | . 4 . Best Kill Streak 2 | . 2 1 Combat Bots Only 2 | . 2 1 Max Kills in Single Turn 1 | . 1 1 Gunslinging . | . . . Exploded . | . . . Melee . | . . . Uniques/NPCs Destroyed . | . . . Combat | -11 -10 -9 -------- Run | Yrd Mat Mat Hostile Shots Fired 141 | . 16 125 Missed 38 | . 4 34 Damage Taken 1230 | . 129 1101 Core 471 | . 64 407 Absorbed by Shields . | . . . Core Remaining (%) 87 | 100 74 . Volleys Fired 36 | . 27 9 Largest 2 | . 2 2 Hottest 90 | . 90 70 Shots Fired 64 | . 54 10 Gun 62 | . 54 8 Cannon 2 | . . 2 Launcher . | . . . Special . | . . . Kinetic 17 | . 16 1 Thermal 45 | . 38 7 Explosive . | . . . Electromagnetic 2 | . . 2 Robot Hit Streak 8 | . 8 5 Robot Miss Streak 4 | . 4 3 Penetration Max . | . . . Secondary Targets . | . . . Shots Hit Robots 40 | . 35 5 Core Hits 15 | . 13 2 Critical Kills . | . . . Critical Parts Destroyed . | . . . Critical Strikes 1 | . 1 . Burn 1 | . 1 . Melee Attacks . | . . . Impact . | . . . Slashing . | . . . Piercing . | . . . Sneak Attacks . | . . . Combat Hostiles . | . . . Follow-up Attacks . | . . . Damage Inflicted 445 | . 373 72 Guns 421 | . 373 48 Cannons 19 | . . 19 Explosions . | . . . Melee . | . . . Ramming 5 | . . 5 Kinetic 118 | . 108 10 Thermal 303 | . 265 38 Explosive . | . . . Electromagnetic 19 | . . 19 Impact . | . . . Slashing . | . . . Piercing . | . . . Highest Corruption . | . . . Average Corruption . | . . . Corruption Purged . | . . . Corruption Blocked . | . . . Overload Shots . | . . . Overflow Damage . | . . . Projectiles . | . . . Explosions . | . . . Melee . | . . . Knockbacks . | . . . Impact . | . . . Kinetic . | . . . Secondary . | . . . Self-Inflicted Damage 2 | . . 2 Shots . | . . . Rammed 2 | . . 2 Targets Rammed 2 | . . 2 Kicked . | . . . Crushed . | . . . Highest Temperature 240 | . 240 67 Average Temperature 64 | . 73 21 Received Heat Transfer 576 | . 72 504 Siege Activations . | . . . Robots Corrupted . | . . . Combat Hostiles . | . . . Parts Fried . | . . . Impact Corruptions . | . . . Robots Melted . | . . . Combat Hostiles . | . . . Parts Melted 2 | . 2 . Heat Transferred 915 | . 804 111 Parts Sabotaged . | . . . Parts Stolen . | . . . Parts Stripped . | . . . Power Chain Reactions . | . . . Alert | -11 -10 -9 ------- Run | Yrd Mat Mat Peak Influence 174 | . 174 110 Initial 73 | . . 73 Average 83 | . 103 79 Maximum Alert Level . | . . . Low Security (%) 100 | 100 100 100 Level 1 . | . . . Level 2 . | . . . Level 3 . | . . . Level 4 . | . . . Level 5 . | . . . High Security . | . . . Max Security . | . . . Squads Dispatched 5 | . 3 2 Investigation 1 | . . 1 Extermination . | . . . Reinforcement 4 | . 3 1 Assault . | . . . Garrison . | . . . Intercept . | . . . Searches Triggered . | . . . Construction Impeded . | . . . Haulers Reinforced . | . . . Active Scanning Responses . | . . . Cargo Convoy Interrupts . | . . . Stealth | -11 -10 -9 --------- Run | Yrd Mat Mat Distress Signals 1 | . . 1 Communications Jammed . | . . . Distress Signals . | . . . Times Spotted 26 | . 9 17 Peak Tracking Total 13 | . 2 13 Tactical Retreats 3 | . 1 2 Traps | -11 -10 -9 ------- Run | Yrd Mat Mat Traps Triggered 1 | . 1 . Indirectly . | . . . Trap Hack Attempts . | . . . Triggered . | . . . Disarmed . | . . . Reprogrammed . | . . . Reused . | . . . Traps Extracted . | . . . Installed . | . . . Triggered . | . . . Machines | -11 -10 -9 ---------- Run | Yrd Mat Mat Machines Disabled 1 | . . 1 Max in Single Turn 1 | . . 1 Machines Repaired . | . . . Machines Dismantled . | . . . Machines Sabotaged . | . . . Overloaded Fab Kills . | . . . Hacking | -11 -10 -9 --------- Run | Yrd Mat Mat Machines Accessed 3 | . 2 1 Terminals 2 | . 1 1 Fabricators . | . . . Repair Stations . | . . . Recycling Units 1 | . 1 . Scanalyzers . | . . . Garrison Access . | . . . Total Hacks 8 | . 4 4 Successful 7 | . 4 3 Failed 1 | . . 1 Catastrophic . | . . . Database Lockouts . | . . . Manual 2 | . 2 . Terminals 6 | . 2 4 Fabricators . | . . . Repair Stations . | . . . Recycling Units 2 | . 2 . Scanalyzers . | . . . Garrison Access . | . . . Terminal Hacks 5 | . 2 3 Robot Analysis 1 | . 1 . Branch Access Points 2 | . 1 1 Locate Traps 1 | . . 1 Zone Layout 1 | . . 1 Fabricator Hacks . | . . . Repair Station Hacks . | . . . Recycling Unit Hacks 1 | . 1 . Retrieve Components 1 | . 1 . Scanalyzer . | . . . Garrison Access Hacks . | . . . Unauthorized Hacks 1 | . 1 . Terminals . | . . . Fabricators . | . . . Repair Stations . | . . . Recycling Units 1 | . 1 . Reject 1 | . 1 . Scanalyzers . | . . . Garrison Access . | . . . Data Cores Recovered . | . . . Used . | . . . Hacking Detections 2 | . 1 1 Full Trace Events 1 | . . 1 Feedback Events . | . . . Feedback Blocked . | . . . Robot Schematics Acquired . | . . . Robots Built . | . . . Authchips . | . . . Time . | . . . Total Robot Build Rating . | . . . Part Schematics Acquired . | . . . Parts Built . | . . . Authchips . | . . . Time . | . . . Total Part Build Rating . | . . . Parts Repaired . | . . . Time . | . . . Parts Recycled . | . . . Recycled Matter . | . . . Retrieved Matter . | . . . Retrieved Components 2 | . 2 . Parts Scanalyzed . | . . . Part Schematics Acquired . | . . . Parts Damaged . | . . . Bothacking | -11 -10 -9 ------------ Run | Yrd Mat Mat Used RIF Installer . | . . . Robots Hacked . | . . . Non-combat . | . . . Combat . | . . . Robot Hacks Applied . | . . . Relay Couplers Released . | . . . Fabnet Peak Effective % . | . . . Robots Rewired . | . . . Allies Hacked . | . . . Hacks Repelled . | . . . Allies | -11 -10 -9 -------- Run | Yrd Mat Mat Total Allies . | . . . Largest Group . | . . . Highest-Rated Group . | . . . Highest-Rated Ally . | . . . Total Orders . | . . . Ally Attacks . | . . . Total Damage . | . . . Kills . | . . . Allies Corrupted . | . . . Allies Melted . | . . . Intel | -11 -10 -9 ------- Run | Yrd Mat Mat Robot Analysis Total 1 | . 1 . Derelict Logs Recovered . | . . . Drone Launches . | . . . Drone Recoveries . | . . . Exploration | -11 -10 -9 ------------- Run | Yrd Mat Mat Turns Passed 597 | 74 346 177 Spaces Moved 388 | 65 193 130 Core 71 | 3 . 68 Treads . | . . . Legs 5 | . . 5 Wheels 312 | 62 193 57 Hover . | . . . Flight . | . . . Fastest Speed 50 | 50 90 50 Average Speed 116 | 88 127 115 Slowest Speed 400 | 100 135 400 Overloaded Moves . | . . . Propulsion Burnouts . | . . . Robots Hopped . | . . . Cave-ins Triggered . | . . . Exploration Rate (%) 21 | 4 37 23 Regions Visited 2 Branch Regions . Pre-discovered Areas . | . . . Known Exits Taken . | . . . Unknown Exits Taken 2 | 1 1 . Scrap Searched . | . . . Spaces Dug . | . . . Terrain Destroyed . | . . . Melee . | . . . Projectile . | . . . AOE . | . . . Terrain Rammed . | . . . Walls Destroyed . | . . . Machines Disabled . | . . . Actions | -11 -10 -9 --------- Run | Yrd Mat Mat Total 465 | 78 240 147 Wait 12 | 2 10 . Move 386 | 64 192 130 Hop . | . . . Pick Up 14 | 6 7 1 Fast Attach 9 | 6 2 1 Attach 5 | . 1 4 Detach . | . . . Swap 1 | . 1 . Drop . | . . . Fire 36 | . 27 9 Melee . | . . . Ram 2 | . . 2 Kick . | . . . Crush . | . . . Escape Stasis . | . . . Rewire . | . . . Trap . | . . . Miscellaneous . | . . . Route ------- -11/Scrapyard -10/Materials (discovered 3 exits: *Mat / *Min x2) -9/Materials (discovered 1 exit: Min) History --------- Turn | Location | Event 20 | -11/Scrapyard | Discovered new exit (range 16) 75 | -11/Scrapyard | Entered Materials 113 | -10/Materials | Identified exit to Mines 310 | -10/Materials | Build established: Mutant 370 | -10/Materials | Discovered new exit (range 16) 421 | -10/Materials | Entered another Materials area 421 | -9/Materials | Evolved 2 slots: Propulsion x1, Weapon x1 444 | -9/Materials | Identified exit to Mines 542 | -9/Materials | Released all parts (2) 545 | -9/Materials | Core integrity fell below 50% 572 | -9/Materials | Lost 8 parts (2p4n2w) 583 | -9/Materials | Core integrity fell below 20% 598 | -9/Materials | Destroyed by S-10 Pest with Light Assault Rifle Last Messages --------------- 00519_ Wheel destroyed. 00519_ Lgt. Assault Rifle destroyed. 00536_ W-16 Scout sends out distress signal. 00539_ Aluminum Leg destroyed. 00541_ Critical hit (Burn: +37). 00541_ Aluminum Leg destroyed. 00542_ Released Sml. Storage Unit. 00542_ Released Huge Storage Unit. 00543_ Slammed into G-34 Mercenary. 00546_ T-07 Excavator is excavating. 00554_ Acquired Lgt. EM Pulse Cannon. 00572_ O-16 Technician: "IFF HANDSHAKE FAILED. SECURING TERMINAL." 00576_ ALERT: Hostiles spotted, dispatching reinforcements to Terminal M002. 00578_ G-34 Mercenary destroyed. 00586_ Material Compactor disabled. 00588_ S-10 Pest destroyed. 00588_ Lgt. EM Pulse Cannon destroyed. 00596_ K-01 Serf cleans the Terminal. Map ----- +----------------------------------------------------+ | ??????????????????????????????????????? | | ??????????????????????????????????????? | | ??????????????????????????????????????? | | ??????????????????????????????????????? | | ??????????????????????????????????????? | | ??????????????????????????????????????? | | ??????????????????????????????????????? | | ??????????????????????????????????????? | | ??????????????????????????????????????? | | ??????????????????????????????????????? | | ??????????????????????????????????????? | | ??????????????????????????????????????? | | ??????????????????????????????????????? | | ??????????????????????????????????????? | | ??????????????????????? ??????????????? | | ????????????????????### ??????????????? | | ????????????? ??? """ ??????????????? | | ????????????? ? "T" [ ??????????????? | | ????????????? ??????????????? | | ?????????????? ??????????????? | | ??????????????? ??????????????? | | ?????????????? ? #?###########??? | | ???????? ???? """ #?# #??? | | ????????= ?"" """ ### #??? | | ???????# ?"" """ # ???? | | ???????+ @ """ """????? | | ???????# # """ """ ???? | | ???????# #####+#### # """ """ #??? | | ???????# # #rs # #??? | | ???????# # """ + s + #??? | | ???????# # """"" ####+###########??? | | ?####### # """"" # #??????????? | | ?# """ # # """"" # #??????????? | | ?# """ # # "" #"" #??????????? | | ?# """ # # #"T #??????????? | | ## # # [ #"" #??????????? | | ## # # *%= # #??????????? | | !# + ####"############??????????? | | # # #???????????????????? | | #######% #???????????????????? | | [ #???????????????????? | | ######## #???????????????????? | | #??????# #####???????????????? | | ######??# +?????????????? | | #??# ###+#######?????????????? | | !!! #??# #???????????????????????? | | !!! #### #???????????????????????? | | !!! + +???????????????????????? | | ##########???????????????????????? | | #????????????????????????????????? | +----------------------------------------------------+ Best States ------------- Heat Dissipation 28 Energy Generation 10 Energy Capacity 125 Matter Stores 300 Matter Capacity 300 Sight Range 16 Terrain Scan Density 10 Evasion (%) 50 Item Schematics ----------------- None Robot Schematics ------------------ None Fabricated ------------ Nothing Alien Tech Used ----------------- None Achievements -------------- None Challenges ------------ None Game ------ Seed SupercompositeGammaStorm Manual? 0 Play Time 00:16:52 Cumulative 40.2 hours Start 2024.03.07 @ 18:17:06 End 2024.03.16 @ 14:08:01 Sessions 3 Manual Loads 0 Difficulty Rogue Special Mode None Game No. 20 Rogue 20 Adventurer 0 Explorer 0 Win Type - Total 0 Types 0/0/0/0/0/0/0/0/0 Lore% 25 Gallery% 24 Achievement% 31 Wizard Run 0 Options --------- Layout 1 ASCII 0 Keyboard 0 Movement Numpad Keybinds 0 Fullscreen 1 Font 16/SmallcapsGlow Map View 55x38 Zoom Use 1% Tactical HUD 1 Map Filters NONE Filters NONE Steam 1 RUN: 273bb247-1677-481b-9044-e420a36d22d2